fUSD/lending_fUSD_20240618
["ID","MTS","AMOUNT","RATE_DAILY","PERIOD"]
[329816870,1718694657699,-500.0,0.00022191,3]
[329816871,1718694657712,-500.0,0.00022191,3]
[329816872,1718694657723,-500.0,0.00022191,3]
[329816873,1718694657733,-500.0,0.00022191,3]
[329816874,1718694657743,-500.0,0.00022191,3]
[329816875,1718694657753,-512.35,0.00022191,3]
[329816876,1718694657763,-500.0,0.00022191,3]
[329816877,1718694657774,-531.7,0.00022191,3]
[329816878,1718694657784,-500.0,0.00022191,3]
[329816879,1718694657794,-855.84,0.00022191,3]
[329816880,1718694657805,-500.0,0.00022191,3]
[329816881,1718694657815,-534.72,0.00022191,3]
[329816882,1718694657825,-500.0,0.00022191,3]
[329816883,1718694657836,-500.0,0.00022191,3]
[329816884,1718694657846,-608.69,0.00022191,3]
[329816885,1718694657856,-513.00424372,0.00022191,3]
[329816886,1718694657866,-500.0,0.00022191,3]
[329816887,1718694657877,-500.0,0.00022191,3]
[329816888,1718694657887,-500.0,0.00022191,3]
[329816889,1718694657897,-500.0,0.00022191,3]
[329816890,1718694657907,-500.0,0.00022191,3]
[329816891,1718694657918,-500.0,0.00022191,3]
[329816892,1718694657928,-500.0,0.00022191,3]
[329816893,1718694657938,-574.51,0.00022191,3]
[329816894,1718694657949,-500.0,0.00022191,3]
[329816895,1718694657959,-500.0,0.00022191,3]
[329816896,1718694657969,-500.0,0.00022191,3]
[329816897,1718694657979,-500.0,0.00022191,3]
[329816898,1718694657989,-511.32850086,0.00022191,3]
[329816899,1718694657999,-500.0,0.00022191,3]
[329816900,1718694658011,-500.0,0.00022191,3]
[329816901,1718694658021,-500.0,0.00022191,3]
[329816902,1718694658031,-516.00136791,0.00022191,3]
[329816903,1718694658041,-500.0,0.00022191,3]
[329816904,1718694658051,-500.0,0.00022191,3]
[329816905,1718694658061,-500.0,0.00022191,3]
[329816906,1718694658071,-231.83063424,0.00022191,3]
[329816907,1718694658082,-500.0,0.00022191,3]
[329816908,1718694658092,-500.0,0.00022191,3]
[329816909,1718694658102,-500.0,0.00022191,3]
[329816910,1718694658112,-500.0,0.00022191,3]
[329816911,1718694658122,-500.0,0.00022191,3]
[329816912,1718694658133,-500.0,0.00022191,3]
[329816913,1718694658144,-500.0,0.00022191,3]
[329816914,1718694658155,-674.34,0.00022191,3]
[329816915,1718694658166,-500.0,0.00022191,3]
[329816916,1718694658178,-500.0,0.00022191,3]
[329816917,1718694658190,-889.63,0.00022191,3]
[329816918,1718694658200,-500.0,0.00022191,3]
[329816919,1718694658211,-500.0,0.00022191,3]
[329816920,1718694658223,-500.0,0.00022191,3]
[329816921,1718694658233,-707.12,0.00022191,3]
[329816922,1718694658244,-619.62,0.00022191,3]
[329816923,1718694658254,-636.47,0.00022191,3]
[329816924,1718694658266,-500.0,0.00022191,3]
[329816925,1718694658276,-588.28,0.00022191,3]
[329816926,1718694658286,-500.0,0.00022191,3]
[329816927,1718694658296,-500.0,0.00022191,3]
[329816928,1718694658306,-500.0,0.00022191,3]
[329816929,1718694658316,-500.0,0.00022191,3]
[329816930,1718694658331,-500.0,0.00022191,3]
[329816931,1718694658341,-500.0,0.00022191,3]
[329816932,1718694658350,-540.46,0.00022191,3]
[329816933,1718694658360,-1067.54,0.00022191,3]
[329816934,1718694658373,-500.0,0.00022191,3]
[329816935,1718694658385,-618.84,0.00022191,3]
[329816936,1718694658400,-225.22137343,0.00022191,3]
[329816937,1718694658410,-500.0,0.00022191,3]
[329816938,1718694658421,-781.32,0.00022191,3]
[329816940,1718694658431,-500.0,0.00022191,3]
[329816941,1718694658441,-500.0,0.00022191,3]
[329816942,1718694658452,-512.45703013,0.00022191,3]
[329816943,1718694658464,-500.0,0.00022191,3]
[329816944,1718694658474,-500.0,0.00022191,3]
[329816945,1718694658483,-500.0,0.00022191,3]
[329816946,1718694658494,-500.0,0.00022191,3]
[329816947,1718694658505,-500.0,0.00022191,3]
[329816948,1718694658516,-500.0,0.00022191,3]
[329816949,1718694658526,-500.0,0.00022191,3]
[329816950,1718694658536,-500.0,0.00022191,3]
[329816951,1718694658546,-500.0,0.00022191,3]
[329816952,1718694658556,-500.0,0.00022191,3]
[329816953,1718694658567,-500.0,0.00022191,3]
[329816954,1718694658577,-500.0,0.00022191,3]
[329816955,1718694658587,-500.0,0.00022191,3]
[329816956,1718694658597,-500.0,0.00022191,3]
[329816957,1718694658607,-500.0,0.00022191,3]
[329816958,1718694658617,-500.0,0.00022191,3]
[329816959,1718694658627,-500.0,0.00022191,3]
[329816960,1718694658637,-500.0,0.00022191,3]
[329816961,1718694658646,-500.0,0.00022191,3]
[329816962,1718694658656,-587.54,0.00022191,3]
[329816963,1718694658665,-500.0,0.00022191,3]
[329816964,1718694658675,-500.0,0.00022191,3]
[329816965,1718694658684,-500.0,0.00022191,3]
[329816966,1718694658694,-519.22963637,0.00022191,3]
[329816967,1718694658705,-500.0,0.00022191,3]
[329816968,1718694658716,-517.9234443,0.00022191,3]
[329816969,1718694658725,-500.0,0.00022191,3]
[329816970,1718694658735,-500.0,0.00022191,3]
[329816971,1718694658745,-500.0,0.00022191,3]
[329816972,1718694658755,-500.0,0.00022191,3]
[329816973,1718694658764,-500.0,0.00022191,3]
[329816974,1718694658774,-748.56,0.00022191,3]
[329816975,1718694658783,-689.95,0.00022191,3]
[329816976,1718694658793,-500.0,0.00022191,3]
[329816977,1718694658802,-500.0,0.00022191,3]
[329816978,1718694658812,-500.0,0.00022191,3]
[329816979,1718694658821,-500.0,0.00022191,3]
[329816980,1718694658831,-500.0,0.00022191,3]
[329816981,1718694658840,-500.0,0.00022191,3]
[329816982,1718694658850,-500.0,0.00022191,3]
[329816983,1718694658860,-500.0,0.00022191,3]
[329816984,1718694658870,-500.0,0.00022191,3]
[329816985,1718694658880,-543.77,0.00022191,3]
[329816986,1718694658890,-500.0,0.00022191,3]
[329816987,1718694658899,-500.0,0.00022191,3]
[329816988,1718694658909,-500.0,0.00022191,3]
[329816989,1718694658919,-643.98,0.00022191,3]
[329816990,1718694658929,-500.0,0.00022191,3]
[329816991,1718694658938,-228.57086455,0.00022191,3]
[329816992,1718694658948,-500.0,0.00022191,3]
[329816993,1718694658960,-521.63,0.00022191,3]
[329816994,1718694658970,-500.0,0.00022191,3]
[329816995,1718694658980,-500.0,0.00022191,3]
[329816996,1718694658990,-500.0,0.00022191,3]
[329816997,1718694658999,-500.0,0.00022191,3]
[329816998,1718694659010,-500.0,0.00022191,3]
[329816999,1718694659020,-500.0,0.00022191,3]
[329817000,1718694659030,-500.0,0.00022191,3]
[329817002,1718694659041,-500.0,0.00022191,3]
[329817003,1718694659050,-500.0,0.00022191,3]
[329817004,1718694659059,-500.0,0.00022191,3]
[329817005,1718694659069,-500.0,0.00022191,3]
[329817006,1718694659078,-500.0,0.00022191,3]
[329817007,1718694659088,-546.38082539,0.00022191,3]
[329817008,1718694659097,-500.0,0.00022191,3]
[329817009,1718694659107,-500.0,0.00022191,3]
[329817010,1718694659116,-500.0,0.00022191,3]
[329817011,1718694659127,-500.0,0.00022191,3]
[329817012,1718694659136,-500.0,0.00022191,3]
[329817013,1718694659145,-500.0,0.00022191,3]
[329817014,1718694659155,-577.19375274,0.00022191,3]
[329817015,1718694659164,-698.1,0.00022191,3]
[329817016,1718694659174,-500.0,0.00022191,3]
[329817017,1718694659184,-500.0,0.00022191,3]
[329817018,1718694659194,-500.0,0.00022191,3]
[329817019,1718694659203,-233.139986,0.00022191,7]
[329817020,1718694659214,-1131.94,0.00022191,3]
[329817021,1718694659224,-500.0,0.00022191,3]
[329817022,1718694659233,-500.0,0.00022191,3]
[329817023,1718694659244,-500.0,0.00022191,3]
[329817024,1718694659253,-167.92532684,0.00022191,3]
[329817025,1718694659263,-751.1,0.00022191,3]
[329817026,1718694659272,-227.34,0.00022191,3]
[329817027,1718694659282,-589.44,0.00022191,3]
[329817028,1718694659291,-500.0,0.00022191,3]
[329817029,1718694659301,-1483.56,0.00022191,3]
[329817030,1718694659311,-931.93,0.00022191,3]
[329817031,1718694659324,-500.0,0.00022191,3]
[329817032,1718694659334,-500.0,0.00022191,3]
[329817033,1718694659343,-500.0,0.00022191,3]
[329817034,1718694659353,-2182.59,0.00022191,3]
[329817035,1718694659363,-500.0,0.00022191,3]
[329817036,1718694659376,-500.0,0.00022191,3]
[329817037,1718694659386,-250.0,0.00022191,3]
[329817038,1718694659397,-684.35,0.00022191,3]
[329817039,1718694659407,-500.0,0.00022191,3]
[329817040,1718694659417,-954.75,0.00022191,3]
[329817041,1718694659426,-917.94,0.00022191,3]
[329817042,1718694659436,-500.0,0.00022191,3]
[329817043,1718694659446,-500.0,0.00022191,3]
[329817044,1718694659456,-500.0,0.00022191,3]
[329817045,1718694659467,-1220.3,0.00022191,3]
[329817046,1718694659476,-1504.87,0.00022191,3]
[329817047,1718694659485,-500.0,0.00022191,3]
[329817048,1718694659494,-500.0,0.00022191,3]
[329817049,1718694659504,-500.0,0.00022191,3]
[329817050,1718694659513,-500.0,0.00022191,3]
[329817051,1718694659523,-500.0,0.00022191,3]
[329817052,1718694659533,-500.0,0.00022191,3]
[329817053,1718694659542,-500.0,0.00022191,3]
[329817054,1718694659552,-1168.96,0.00022191,3]
[329817055,1718694659562,-500.0,0.00022191,3]
[329817056,1718694659572,-500.0,0.00022191,2]
[329817057,1718694659582,-1100.41,0.00022191,3]
[329817058,1718694659591,-748.7,0.00022191,3]
[329817059,1718694659601,-500.0,0.00022191,3]
[329817060,1718694659611,-524.43,0.00022191,3]
[329817061,1718694659620,-500.0,0.00022191,3]
[329817062,1718694659630,-630.08,0.00022191,3]
[329817063,1718694659639,-697.72,0.00022191,3]
[329817064,1718694659649,-954.6,0.00022191,2]
[329817065,1718694659658,-500.0,0.00022191,3]
[329817066,1718694659668,-500.0,0.00022191,3]
[329817067,1718694659677,-500.0,0.00022191,3]
[329817068,1718694659687,-1395.67,0.00022191,3]
[329817069,1718694659696,-500.0,0.00022191,3]
[329817070,1718694659706,-500.0,0.00022191,3]
[329817071,1718694659717,-768.04,0.00022191,3]
[329817072,1718694659727,-500.0,0.00022191,3]
[329817073,1718694659736,-500.0,0.00022191,3]
[329817074,1718694659746,-500.0,0.00022191,3]
[329817075,1718694659756,-500.0,0.00022191,3]
[329817076,1718694659765,-500.0,0.00022191,3]
[329817077,1718694659775,-500.0,0.00022191,3]
[329817078,1718694659784,-500.0,0.00022191,3]
[329817079,1718694659794,-500.0,0.00022191,3]
[329817080,1718694659803,-500.0,0.00022191,3]
[329817081,1718694659813,-1184.59,0.00022191,3]
[329817082,1718694659823,-501.31,0.00022191,3]
[329817083,1718694659832,-1303.23,0.00022191,3]
[329817084,1718694659842,-719.99,0.00022191,3]
[329817085,1718694659852,-507.67572433,0.00022191,3]
[329817086,1718694659861,-500.0,0.00022191,3]
[329817087,1718694659871,-500.0,0.00022191,3]
[329817088,1718694659880,-503.49483145,0.00022191,3]
[329817089,1718694659890,-500.0,0.00022191,3]
[329817090,1718694659900,-500.0,0.00022191,3]
[329817091,1718694659910,-500.0,0.00022191,3]
[329817092,1718694659919,-1416.52,0.00022191,3]
[329817093,1718694659929,-500.0,0.00022191,3]
[329817094,1718694659938,-500.0,0.00022191,3]
[329817095,1718694659949,-500.0,0.00022191,3]
[329817096,1718694659962,-328.57762148,0.00022191,3]
[329817097,1718694659971,-805.03,0.00022191,3]
[329817098,1718694659981,-880.66,0.00022191,3]
[329817099,1718694659992,-447.40123103,0.00022191,3]
[329817100,1718694660002,-500.0,0.00022191,3]
[329817101,1718694660012,-500.0,0.00022191,3]
[329817102,1718694660023,-500.0,0.00022191,3]
[329817103,1718694660032,-500.0,0.00022191,3]
[329817104,1718694660042,-500.0,0.00022191,3]
[329817105,1718694660051,-522.41,0.00022191,3]
[329817106,1718694660061,-500.0,0.00022191,3]
[329817107,1718694660071,-500.0,0.00022191,3]
[329817108,1718694660080,-500.0,0.00022191,3]
[329817109,1718694660090,-1240.33,0.00022191,3]
[329817110,1718694660099,-500.0,0.00022191,3]
[329817111,1718694660108,-500.0,0.00022191,3]
[329817112,1718694660117,-500.0,0.00022191,3]
[329817113,1718694660127,-2009.97,0.00022191,3]
[329817114,1718694660136,-921.11,0.00022191,3]
[329817115,1718694660145,-1619.14,0.00022191,3]
[329817116,1718694660155,-500.0,0.00022191,3]
[329817117,1718694660164,-181.61973393,0.00022191,3]
[329817118,1718694660174,-500.0,0.00022191,3]
[329817119,1718694660185,-500.0,0.00022191,3]
[329817120,1718694660195,-350.21797555,0.00022191,2]
[329817121,1718694660204,-500.0,0.00022191,3]
[329817122,1718694660217,-500.0,0.00022191,3]
[329817123,1718694660227,-500.0,0.00022191,3]
[329817124,1718694660237,-500.0,0.00022191,3]
[329817125,1718694660247,-500.0,0.00022191,3]
[329817126,1718694660256,-500.0,0.00022191,3]
[329817127,1718694660266,-1294.33,0.00022191,3]
[329817128,1718694660275,-1317.7,0.00022191,3]
[329817129,1718694660284,-500.0,0.00022191,3]
[329817130,1718694660293,-500.0,0.00022191,3]
[329817131,1718694660302,-500.0,0.00022191,3]
[329817132,1718694660311,-4256.13428364,0.00022191,3]
[329817133,1718694660321,-1407.85,0.00022191,3]
[329817134,1718694660335,-500.0,0.00022191,3]
[329817135,1718694660345,-500.0,0.00022191,3]
[329817136,1718694660355,-500.0,0.00022191,3]
[329817137,1718694660366,-500.0,0.00022191,3]
[329817138,1718694660377,-500.0,0.00022191,3]
[329817139,1718694660387,-513.91,0.00022191,3]
[329817140,1718694660398,-500.0,0.00022191,3]
[329817141,1718694660408,-896.46,0.00022191,3]
[329817142,1718694660418,-515.16,0.00022191,3]
[329817143,1718694660428,-540.53,0.00022191,3]
[329817144,1718694660437,-1542.62,0.00022191,3]
[329817145,1718694660447,-500.0,0.00022191,3]
[329817146,1718694660457,-500.0,0.00022191,3]
[329817147,1718694660472,-684.35,0.00022191,3]
[329817148,1718694660711,-724.0,0.00022191,3]
[329817149,1718694660721,-743.93,0.00022191,3]
[329817150,1718694660731,-1332.3,0.00022191,3]
[329817151,1718694660741,-500.0,0.00022191,3]
[329817152,1718694660751,-500.0,0.00022191,3]
[329817153,1718694660760,-646.99,0.00022191,3]
[329817154,1718694660770,-474.58156865,0.00022191,3]
[329817155,1718694660780,-503.6463559,0.00022191,3]
[329817156,1718694660790,-500.0,0.00022191,3]
[329817157,1718694660799,-500.0,0.00022191,3]
[329817158,1718694660809,-500.0,0.00022191,3]
[329817159,1718694660819,-500.0,0.00022191,3]
[329817160,1718694660829,-1031.88,0.00022191,3]
[329817161,1718694660839,-500.0,0.00022191,3]
[329817162,1718694660848,-500.0,0.00022191,3]
[329817163,1718694660858,-376.61302874,0.00022191,3]
[329817164,1718694660867,-500.0,0.00022191,3]
[329817165,1718694660877,-500.0,0.00022191,3]
[329817166,1718694660886,-500.0,0.00022191,3]
[329817167,1718694660896,-500.0,0.00022191,3]
[329817168,1718694660906,-500.0,0.00022191,3]
[329817169,1718694660916,-500.0,0.00022191,3]
[329817170,1718694660926,-500.0,0.00022191,3]
[329817171,1718694660936,-568.34,0.00022191,3]
[329817172,1718694660946,-500.0,0.00022191,3]
[329817173,1718694660955,-500.0,0.00022191,3]
[329817174,1718694660968,-500.0,0.00022191,3]
[329817175,1718694660978,-1548.8,0.00022191,3]
[329817176,1718694660988,-1277.25,0.00022191,3]
[329817177,1718694660998,-500.0,0.00022191,3]
[329817178,1718694661008,-500.0,0.00022191,3]
[329817179,1718694661018,-1170.86,0.00022191,3]
[329817180,1718694661027,-500.0,0.00022191,3]
[329817181,1718694661037,-500.0,0.00022191,3]
[329817182,1718694661047,-500.0,0.00022191,3]
[329817183,1718694661057,-500.0,0.00022191,3]
[329817184,1718694661066,-500.0,0.00022191,3]
[329817185,1718694661076,-500.0,0.00022191,3]
[329817186,1718694661086,-938.95,0.00022191,3]
[329817187,1718694661096,-619.83,0.00022191,3]
[329817188,1718694661105,-1341.6,0.00022191,3]
[329817189,1718694661115,-500.0,0.00022191,3]
[329817190,1718694661125,-500.0,0.00022191,3]
[329817191,1718694661135,-1284.59,0.00022191,3]
[329817192,1718694661144,-500.0,0.00022191,3]
[329817193,1718694661153,-500.0,0.00022191,3]
[329817194,1718694661163,-500.0,0.00022191,3]
[329817195,1718694661172,-473.37073591,0.00022191,3]
[329817196,1718694661181,-500.0,0.00022191,3]
[329817197,1718694661191,-500.0,0.00022191,3]
[329817198,1718694661200,-1486.31,0.00022191,3]
[329817199,1718694661211,-887.99,0.00022191,3]
[329817200,1718694661220,-500.0,0.00022191,3]
[329817201,1718694661229,-588.42,0.00022191,3]
[329817202,1718694661239,-1043.05,0.00022191,3]
[329817203,1718694661248,-500.0,0.00022191,3]
[329817204,1718694661258,-885.16,0.00022191,3]
[329817205,1718694661267,-500.0,0.00022191,3]
[329817206,1718694661277,-500.0,0.00022191,3]
[329817207,1718694661287,-501.72,0.00022191,3]
[329817208,1718694661296,-500.0,0.00022191,3]
[329817209,1718694661306,-930.25,0.00022191,3]
[329817210,1718694661315,-1152.29,0.00022191,3]
[329817211,1718694661328,-500.0,0.00022191,3]
[329817212,1718694661338,-500.0,0.00022191,3]
[329817213,1718694661348,-566.53,0.00022191,3]
[329817214,1718694661358,-500.0,0.00022191,3]
[329817215,1718694661368,-500.0,0.00022191,3]
[329817216,1718694661378,-500.0,0.00022191,3]
[329817217,1718694661387,-935.95,0.00022191,3]
[329817218,1718694661396,-1094.3,0.00022191,3]
[329817219,1718694661408,-948.82,0.00022191,3]
[329817220,1718694661417,-1167.88,0.00022191,3]
[329817221,1718694661427,-500.0,0.00022191,3]
[329817222,1718694661437,-500.0,0.00022191,3]
[329817223,1718694661446,-507.23845751,0.00022191,3]
[329817224,1718694661455,-618.81,0.00022191,3]
[329817225,1718694661468,-500.0,0.00022191,3]
[329817226,1718694661477,-550.2,0.00022191,3]
[329817227,1718694661487,-500.0,0.00022191,3]
[329817228,1718694661496,-500.0,0.00022191,3]
[329817229,1718694661507,-754.65,0.00022191,3]
[329817230,1718694661517,-500.0,0.00022191,3]
[329817231,1718694661527,-1297.37,0.00022191,3]
[329817232,1718694661536,-1364.2,0.00022191,3]
[329817233,1718694661545,-975.81,0.00022191,3]
[329817234,1718694661555,-500.0,0.00022191,3]
[329817235,1718694661564,-214.15200282,0.00022191,3]
[329817236,1718694661574,-500.0,0.00022191,3]
[329817237,1718694661583,-500.0,0.00022191,3]
[329817238,1718694661594,-500.0,0.00022191,3]
[329817239,1718694661603,-1578.57,0.00022191,3]
[329817240,1718694661614,-500.0,0.00022191,3]
[329817241,1718694661624,-253.7164366,0.00022191,3]
[329817242,1718694661634,-613.75,0.00022191,3]
[329817243,1718694661643,-544.47,0.00022191,3]
[329817244,1718694661652,-500.0,0.00022191,3]
[329817245,1718694661662,-500.0,0.00022191,3]
[329817246,1718694661673,-500.0,0.00022191,3]
[329817247,1718694661683,-628.47,0.00022191,3]
[329817248,1718694661692,-500.0,0.00022191,3]
[329817249,1718694661702,-500.0,0.00022191,3]
[329817250,1718694661714,-500.0,0.00022191,3]
[329817251,1718694661724,-1099.03,0.00022191,3]
[329817252,1718694661734,-500.0,0.00022191,3]
[329817253,1718694661744,-500.0,0.00022191,3]
[329817254,1718694661753,-500.0,0.00022191,3]
[329817255,1718694661764,-730.79,0.00022191,3]
[329817256,1718694661774,-1920.56,0.00022191,3]
[329817257,1718694661784,-500.0,0.00022191,3]
[329817258,1718694661793,-500.0,0.00022191,3]
[329817259,1718694661803,-500.0,0.00022191,3]
[329817260,1718694661812,-1036.79,0.00022191,3]
[329817261,1718694661822,-500.0,0.00022191,3]
[329817262,1718694661832,-730.99,0.00022191,3]
[329817263,1718694661842,-507.39889423,0.00022191,3]
[329817264,1718694661851,-500.0,0.00022191,3]
[329817265,1718694661861,-500.0,0.00022191,3]
[329817266,1718694661871,-500.0,0.00022191,3]
[329817267,1718694661881,-1223.46,0.00022191,3]
[329817268,1718694661890,-994.25,0.00022191,3]
[329817269,1718694661899,-500.0,0.00022191,3]
[329817270,1718694661910,-989.28,0.00022191,3]
[329817271,1718694661920,-500.0,0.00022191,3]
[329817272,1718694661929,-500.0,0.00022191,3]
[329817273,1718694661939,-500.0,0.00022191,3]
[329817274,1718694661948,-796.87,0.00022191,3]
[329817275,1718694661958,-500.0,0.00022191,3]
[329817276,1718694661968,-682.28,0.00022191,3]
[329817277,1718694661977,-500.0,0.00022191,3]
[329817278,1718694661987,-500.0,0.00022191,3]
[329817279,1718694661996,-834.05,0.00022191,3]
[329817280,1718694662006,-500.0,0.00022191,3]
[329817281,1718694662015,-500.0,0.00022191,3]
[329817282,1718694662025,-500.0,0.00022191,3]
[329817283,1718694662034,-500.0,0.00022191,3]
[329817284,1718694662044,-500.0,0.00022191,3]
[329817285,1718694662053,-1412.11,0.00022191,3]
[329817286,1718694662062,-500.0,0.00022191,3]
[329817287,1718694662072,-500.0,0.00022191,3]
[329817288,1718694662081,-500.0,0.00022191,3]
[329817289,1718694662091,-500.0,0.00022191,3]
[329817290,1718694662100,-500.0,0.00022191,3]
[329817291,1718694662109,-500.0,0.00022191,3]
[329817292,1718694662119,-500.0,0.00022191,3]
[329817293,1718694662128,-500.0,0.00022191,3]
[329817294,1718694662138,-1143.24,0.00022191,3]
[329817295,1718694662148,-726.93,0.00022191,3]
[329817296,1718694662158,-500.0,0.00022191,3]
[329817297,1718694662168,-500.0,0.00022191,3]
[329817298,1718694662177,-500.0,0.00022191,3]
[329817299,1718694662186,-500.0,0.00022191,3]
[329817300,1718694662195,-621.29953251,0.00022191,3]
[329817301,1718694662205,-717.86,0.00022191,3]
[329817302,1718694662217,-500.0,0.00022191,3]
[329817303,1718694662227,-500.0,0.00022191,3]
[329817304,1718694662236,-500.0,0.00022191,3]
[329817305,1718694662245,-1035.72,0.00022191,3]
[329817306,1718694662255,-500.0,0.00022191,3]
[329817307,1718694662264,-500.0,0.00022191,3]
[329817308,1718694662275,-500.0,0.00022191,3]
[329817309,1718694662284,-500.0,0.00022191,3]
[329817310,1718694662294,-1406.75,0.00022191,3]
[329817311,1718694662304,-500.0,0.00022191,3]
[329817312,1718694662314,-1305.39,0.00022191,3]
[329817313,1718694662328,-500.0,0.00022191,3]
[329817314,1718694662339,-500.0,0.00022191,3]
[329817315,1718694662349,-664.31,0.00022191,3]
[329817316,1718694662360,-500.0,0.00022191,3]
[329817317,1718694662371,-739.07,0.00022191,3]
[329817318,1718694662380,-1877.72,0.00022191,3]
[329817319,1718694662390,-1471.43,0.00022191,3]
[329817320,1718694662401,-500.0,0.00022191,3]
[329817321,1718694662411,-500.0,0.00022191,3]
[329817322,1718694662422,-954.69,0.00022191,3]
[329817323,1718694662432,-500.0,0.00022191,3]
[329817324,1718694662441,-500.0,0.00022191,3]
[329817325,1718694662451,-500.0,0.00022191,3]
[329817326,1718694662461,-500.99241175,0.00022191,3]
[329817327,1718694662470,-552.44,0.00022191,3]
[329817328,1718694662480,-500.0,0.00022191,3]
[329817329,1718694662491,-558.55944046,0.00022191,3]
[329817330,1718694662501,-500.0,0.00022191,3]
[329817331,1718694662511,-1037.01,0.00022191,3]
[329817332,1718694662521,-500.0,0.00022191,3]
[329817333,1718694662530,-1386.75,0.00022191,3]
[329817334,1718694662540,-514.63,0.00022191,3]
[329817335,1718694662550,-500.0,0.00022191,3]
[329817336,1718694662560,-500.0,0.00022191,3]
[329817337,1718694662570,-538.98,0.00022191,3]
[329817338,1718694662579,-500.0,0.00022191,3]
[329817339,1718694662594,-500.0,0.00022191,3]
[329817340,1718694662604,-1527.03,0.00022191,3]
[329817341,1718694662613,-500.0,0.00022191,3]
[329817342,1718694662623,-500.0,0.00022191,3]
[329817343,1718694662633,-528.14,0.00022191,3]
[329817344,1718694662642,-502.1751482,0.00022191,3]
[329817345,1718694662651,-500.0,0.00022191,3]
[329817346,1718694662661,-500.0,0.00022191,3]
[329817347,1718694662671,-500.0,0.00022191,3]
[329817348,1718694662680,-549.96,0.00022191,3]
[329817349,1718694662690,-1581.69,0.00022191,3]
[329817350,1718694662700,-500.0,0.00022191,3]
[329817351,1718694662712,-500.0,0.00022191,3]
[329817352,1718694662724,-559.92,0.00022191,3]
[329817353,1718694662733,-521.52,0.00022191,3]
[329817354,1718694662743,-500.0,0.00022191,3]
[329817355,1718694662753,-500.0,0.00022191,3]
[329817356,1718694662762,-500.0,0.00022191,3]
[329817357,1718694662772,-500.0,0.00022191,3]
[329817358,1718694662782,-500.0,0.00022191,3]
[329817359,1718694662792,-500.0,0.00022191,3]
[329817360,1718694662802,-500.0,0.00022191,3]
[329817361,1718694662812,-500.0,0.00022191,3]
[329817362,1718694662822,-580.45,0.00022191,3]
[329817363,1718694662832,-412.17,0.00022191,3]
[329817364,1718694662842,-500.0,0.00022191,3]
[329817365,1718694662852,-500.0,0.00022191,3]
[329817366,1718694662862,-500.0,0.00022191,3]
[329817367,1718694662872,-974.63,0.00022191,3]
[329817368,1718694662882,-500.0,0.00022191,3]
[329817369,1718694662892,-763.92,0.00022191,3]
[329817370,1718694662902,-1182.29,0.00022191,3]
[329817371,1718694662912,-519.84649514,0.00022191,3]